bitfinex/quotes_SOLUSD_20211001
["timestamp","ask_amount","ask_price","bid_price","bid_amount"]
[1633084540258,26.4428158,146.18,146.17,5.93075154]
[1633084540461,2.56553117,146.18,146.17,5.93075154]
[1633084540659,2.56553117,146.18,146.17,5.154e-05]
[1633084540858,2.56553117,146.18,146.13,15.81987071]
[1633084541059,2.47786015,146.14,146.13,15.81987071]
[1633084541261,2.47786015,146.14,146.0,2.21]
[1633084541460,2.47786015,146.14,146.01,15.81833527]
[1633084541661,26.58029408,146.13,146.02,28.75615122]
[1633084542062,2.53450246,146.06,145.95,75.54718009]
[1633084542259,2.53450246,146.06,145.93,491.99687768]
[1633084542459,0.0421776,146.05,145.93,491.99687768]
[1633084542660,0.0421776,146.05,145.93,375.49687768]
[1633084543062,22.21829169,146.05,145.94,23.3504362]
[1633084543260,0.0421776,146.04,145.94,23.3504362]
[1633084543461,2.44884888,146.04,145.94,23.3504362]
[1633084544062,2.44884888,146.04,145.93,375.49687768]
[1633084544662,0.0421776,146.07,145.93,375.49687768]
[1633084544862,0.0421776,146.08,145.93,375.49687768]
[1633084545063,0.0421776,146.06,145.93,375.49687768]
[1633084545466,24.17609149,146.11,145.94,24.59540185]
[1633084545667,24.17609149,146.11,146.02,30.0]
[1633084545668,0.0421776,146.1,146.02,30.0]
[1633084546265,0.0421776,146.12,146.02,30.0]
[1633084546465,0.0421776,146.13,146.02,30.0]
[1633084547067,2.57413313,146.09,146.02,30.0]
[1633084547266,0.0421776,146.08,146.02,30.0]
[1633084547467,2.55268334,146.04,145.93,375.49687768]
[1633084548067,21.66277761,146.03,145.94,29.74952518]
[1633084548668,0.0421776,146.02,145.94,29.74952518]
[1633084549067,0.0421776,146.08,145.94,29.74952518]
[1633084549274,0.0421776,146.09,145.94,29.74952518]
[1633084549468,0.0421776,146.1,145.94,29.74952518]
[1633084549872,2.21,146.11,145.94,29.74952518]
[1633084550069,29.29556424,146.08,145.94,29.74952518]
[1633084550269,0.0421776,146.07,145.94,29.74952518]
[1633084550669,0.0421776,146.08,145.99,28.0]
[1633084550871,0.0421776,146.11,146.02,30.0]
[1633084551468,28.25605353,146.11,146.03,29.02111205]
[1633084551670,0.0421776,146.1,146.03,29.02111205]
[1633084552269,2.47116043,146.06,146.02,30.0]
[1633084552469,2.47116043,146.06,146.02,0.647548]
[1633084552874,0.0421776,146.07,146.02,0.647548]
[1633084553070,2.47799904,146.11,146.02,0.647548]
[1633084553268,25.27149124,146.1,146.02,0.647548]
[1633084553471,0.0421776,146.09,145.98,25.54343434]
[1633084553669,0.0421776,146.09,145.93,375.49687768]
[1633084554070,2.53267389,146.03,145.93,375.49687768]
[1633084554470,2.53267389,146.03,145.93,374.99687768]
[1633084554672,22.24514411,146.02,145.93,402.0014011]
[1633084554871,2.42532689,145.98,145.93,374.99687768]
[1633084555071,2.42532689,145.98,145.86,3.57646004]
[1633084555272,2.4046656,145.95,145.86,3.57646004]
[1633084555872,2.4046656,145.95,145.87,25.20162735]
[1633084556073,0.0421776,145.96,145.87,25.20162735]
[1633084556274,0.0421776,146.01,145.87,25.20162735]
[1633084556672,2.47965292,145.98,145.79,2.21]
[1633084556873,0.0421776,145.97,145.79,2.21]
[1633084557073,24.72877852,146.02,145.79,2.21]
[1633084557275,0.0421776,146.01,145.79,2.21]
[1633084557678,2.51628999,145.98,145.8,25.07581891]
[1633084557875,2.51628999,145.98,145.85,520.02247536]
[1633084558077,2.51628999,145.98,145.86,21.35421327]
[1633084558874,2.51628999,145.98,145.97,28.0]
[1633084559076,0.0421776,146.02,145.97,28.0]
[1633084559275,0.0421776,146.05,145.97,28.0]
[1633084559476,2.2521776,146.06,145.97,28.0]
[1633084559876,23.67369498,146.05,145.97,28.0]
[1633084561078,2.54779009,146.03,145.97,28.0]
[1633084561280,2.55018858,145.99,145.97,28.0]
[1633084561678,0.0421776,145.98,145.97,28.0]
[1633084561878,0.0421776,146.02,145.97,28.0]
[1633084562076,0.0421776,146.04,145.97,28.0]
[1633084562277,0.0421776,146.07,145.97,28.0]
[1633084562477,0.0421776,146.08,145.97,28.0]
[1633084562677,0.0421776,146.1,145.98,26.17199742]
[1633084562877,0.0421776,146.13,145.98,26.17199742]
[1633084563080,2.21,146.13,145.98,26.17199742]
[1633084563280,2.48575178,146.08,145.98,26.17199742]
[1633084563477,2.52792938,146.08,145.98,26.17199742]
[1633084563680,24.65565451,146.08,145.98,26.17199742]
[1633084563880,2.52262506,146.02,145.95,419.44339389]
[1633084564877,2.52262506,146.02,145.96,25.70899293]
[1633084565278,0.0421776,146.04,146.02,28.0]
[1633084565477,0.0421776,146.09,146.02,28.0]
[1633084565678,0.0421776,146.11,146.02,28.0]
[1633084566079,0.0421776,146.11,146.02,53.33363166]
[1633084566481,0.0421776,146.11,146.02,28.0]
[1633084566881,2.51717941,146.04,146.0,0.64]
[1633084567081,2.53520456,146.03,146.0,0.64]
[1633084567278,2.59229057,146.01,146.0,0.64]
[1633084567881,2.63446817,146.01,146.0,0.64]
[1633084568282,2.63446817,146.01,146.0,0.0001]
[1633084568481,2.63446817,146.01,145.81,2.21]
[1633084568682,0.0421776,146.0,145.82,29.29379412]
[1633084568881,26.49450179,146.02,145.83,2.21]
[1633084569681,2.40179277,145.98,145.83,2.21]
[1633084569883,2.50787672,145.95,145.82,29.29379412]
[1633084570682,10.35999672,145.95,145.82,29.29379412]
[1633084571082,2.47155162,145.89,145.82,29.29379412]
[1633084571482,2.5084338,145.88,145.74,118.0443]
[1633084571685,2.59572476,145.87,145.84,556.06656812]
[1633084571882,2.59572476,145.87,145.75,75.6526]
[1633084572281,2.44295293,145.82,145.7,79.1285]
[1633084572483,2.59572476,145.87,145.71,99.36606825]
[1633084574484,5.63542961,145.86,145.76,352.29739971]
[1633084574684,2.59572476,145.87,145.77,27.42515728]
[1633084575084,3.87842298,145.86,145.77,21.78972767]
[1633084575286,2.53300783,145.96,145.76,352.29739971]
[1633084575685,0.00542961,145.77,145.76,352.29739971]
[1633084575886,2.53300783,145.96,145.76,354.50739971]
[1633084576289,4.69673596,145.94,145.77,22.79573102]
[1633084576491,2.48555175,145.9,145.77,22.79573102]
[1633084576686,10.33767175,145.9,145.77,22.79573102]
[1633084579495,42.26242378,146.01,145.81,98.0]
[1633084579689,0.0421776,146.04,146.01,11.02758979]
[1633084579889,0.0421776,146.05,146.01,11.02758979]
[1633084580088,0.0421776,146.07,146.01,11.02758979]
[1633084580288,7.84542961,146.11,146.01,11.02758979]
[1633084580489,0.0421776,146.1,146.01,11.02758979]
[1633084580688,5.63542961,146.06,146.01,11.02758979]
[1633084581088,23.80056821,146.05,146.01,11.02758979]
[1633084581690,5.63542961,146.04,146.01,11.02758979]
[1633084582289,5.63542961,146.04,146.01,446.49187983]
[1633084582691,5.63542961,146.04,146.01,11.02758979]
[1633084584091,4.57543182,146.01,145.87,29.6286769]
[1633084584292,4.57543182,146.01,145.85,79.1196]
[1633084584293,2.53233106,146.0,145.82,7.74524]
[1633084584493,5.63542961,146.0,145.83,2.21]
[1633084584695,5.63542961,145.99,145.83,2.21]
[1633084585095,6.45215797,146.01,145.96,445.12526318]
[1633084586093,6.45215797,146.01,145.97,25.79599473]
[1633084586294,6.45215797,146.01,145.96,445.12526318]
[1633084586495,5.63542961,146.0,145.96,445.12526318]
[1633084586694,0.0421776,145.99,145.98,6.7765]
[1633084586893,5.63542961,146.0,145.98,6.7765]
[1633084587093,5.63542961,145.99,145.98,6.7765]
[1633084587696,6.45215797,146.01,145.98,6.7765]
[1633084588296,74.9127,146.14,146.01,6.45215797]
[1633084588496,29.41315702,146.13,146.01,6.45215797]
[1633084588694,31.93720445,146.13,146.01,6.45215797]
[1633084589096,5.63542961,146.12,146.01,6.45215797]
[1633084589495,2.2521776,146.16,146.01,6.45215797]
[1633084589897,0.0421776,146.16,146.01,6.45215797]
[1633084590095,0.0421776,146.18,146.02,6.7765]
[1633084590296,5.63542961,146.15,146.03,29.54402644]
[1633084590498,27.38517176,146.16,146.03,29.54402644]
[1633084590696,0.0421776,146.19,146.03,29.54402644]
[1633084590897,0.0421776,146.2,146.16,20.89083619]
[1633084591297,0.0421776,146.26,146.16,20.89083619]
[1633084591696,23.42572182,146.26,146.16,20.89083619]
[1633084592897,0.0421776,146.25,146.16,20.89083619]
[1633084593097,6.72403637,146.16,146.04,7.73357]
[1633084593297,6.72403637,146.16,146.04,9.94357]
[1633084593699,0.0421776,146.21,146.05,6.7765]
[1633084593899,0.0421776,146.29,146.06,2.21]
[1633084594099,2.42946673,146.27,146.06,2.21]
[1633084594299,0.0421776,146.26,146.06,2.21]
[1633084594499,0.0421776,146.26,146.22,30.0]
[1633084594900,26.25994101,146.26,146.22,30.0]
[1633084595102,26.25994101,146.26,146.22,26.54656534]
[1633084595499,23.77380233,146.26,146.22,26.54656534]
[1633084595698,23.77380233,146.26,146.22,56.54656534]
[1633084595900,9.0,146.25,146.05,14.47667]
[1633084596101,2.46692124,146.2,146.06,27.50957498]
[1633084596302,15.95373133,146.19,146.06,27.50957498]
[1633084596901,2.46692124,146.2,146.06,27.50957498]
[1633084597103,0.0421776,146.23,146.07,8.9865]
[1633084597303,0.0421776,146.29,146.07,8.9865]
[1633084597499,0.0421776,146.31,146.07,8.9865]
[1633084597901,0.0421776,146.31,146.07,36.82291231]
[1633084598100,0.0421776,146.31,146.07,54.28574532]
[1633084598701,0.0421776,146.3,146.07,26.44933301]
[1633084598902,0.0421776,146.3,146.07,54.35796754]
[1633084599101,17.46918106,146.29,146.07,54.35796754]
[1633084599301,0.0421776,146.28,146.07,54.35796754]
[1633084599501,0.0421776,146.28,146.07,26.44933301]
[1633084601202,2.51296579,146.28,146.07,26.44933301]
[1633084601403,2.51296579,146.28,146.07,8.9865]
[1633084601404,2.44032582,146.22,146.07,8.9865]
[1633084601603,24.641283,146.21,146.07,6.7765]
[1633084601802,2.58682324,146.17,146.07,6.7765]
[1633084602402,2.58682324,146.17,146.04,6.7765]
[1633084603003,17.46918106,146.16,146.04,28.16235227]
[1633084603804,17.46918106,146.16,146.04,6.7765]
[1633084605608,2.40398878,146.12,146.01,6.7765]
[1633084605808,22.216175,146.11,146.01,6.7765]
[1633084606806,0.0421776,146.13,146.11,3.577]
[1633084607004,0.0421776,146.16,146.11,3.577]
[1633084607607,0.0421776,146.17,146.11,3.577]
[1633084607806,0.0421776,146.22,146.12,29.70463776]
[1633084608008,0.0421776,146.23,146.12,29.70463776]
[1633084608209,0.0421776,146.24,146.12,29.70463776]
[1633084608408,0.0421776,146.27,146.12,29.70463776]
[1633084608807,26.97364388,146.27,146.12,29.70463776]
[1633084609008,0.0421776,146.26,146.13,6.7765]
[1633084610208,0.0421776,146.26,146.21,30.0]
[1633084610413,5.63542961,146.3,146.21,30.0]
[1633084610615,2.21,146.3,146.21,30.0]
[1633084610811,51.5041776,146.33,146.21,30.0]
[1633084611011,4.219583,146.32,146.21,30.0]
[1633084611814,0.0421776,146.33,146.2,28.88953621]
[1633084612012,0.0421776,146.35,146.2,28.88953621]
[1633084612212,0.0421776,146.37,146.2,31.09953621]
[1633084612412,0.0421776,146.41,146.2,35.76845221]
[1633084612614,70.84220224,146.4,146.2,33.79403621]
[1633084612814,70.84220224,146.39,146.3,30.0]
[1633084613017,23.94053439,146.37,146.3,30.0]
[1633084613219,51.462,146.36,146.3,30.0]
[1633084613414,51.462,146.36,146.22,347.97663719]
[1633084613619,9.0421776,146.35,146.22,347.97663719]
[1633084613813,53.7141776,146.34,146.22,347.97663719]
[1633084614014,0.0421776,146.33,146.21,74.3393]
[1633084614413,8.77176264,146.33,146.3,30.0]
[1633084614614,0.0421776,146.32,146.3,30.0]
[1633084615425,0.0421776,146.33,146.3,30.0]
[1633084615616,2.21,146.34,146.3,30.0]
[1633084615820,0.0421776,146.41,146.3,30.0]
[1633084616017,70.84220224,146.4,146.3,30.0]
[1633084616216,70.84220224,146.39,146.31,21.99283725]
[1633084616416,70.84220224,146.41,146.3,30.0]
[1633084616617,51.462,146.39,146.3,30.0]
[1633084616815,70.84220224,146.38,146.3,30.0]
[1633084617617,67.510041,146.38,146.31,27.76383187]
[1633084617821,0.0421776,146.4,146.31,27.76383187]
[1633084618045,0.0421776,146.4,146.38,67.510041]
[1633084618423,0.0421776,146.45,146.38,67.510041]
[1633084618618,15.465439,146.44,146.38,67.510041]
[1633084618817,15.465439,146.43,146.38,67.510041]
[1633084619018,14.996789,146.42,146.38,67.510041]
[1633084619422,14.996789,146.45,146.38,67.510041]
[1633084620618,8.13369318,146.44,146.38,67.510041]
[1633084620819,14.996789,146.43,146.38,67.510041]
[1633084621417,14.996789,146.46,146.38,67.510041]
[1633084621618,15.013225,146.45,146.38,67.510041]
[1633084621819,0.10808364,146.48,146.38,67.510041]
[1633084622418,0.10808364,146.48,146.38,75.225651]
[1633084622619,0.10808364,146.48,146.38,77.435651]
[1633084622819,0.10808364,146.48,146.39,72.0973]
[1633084623019,0.10808364,146.48,146.4,29.06446936]
[1633084623418,0.10808364,146.48,146.4,31.27446936]
[1633084623622,0.10808364,146.48,146.41,7.66964]
[1633084625221,0.00808364,146.48,146.42,5.63542961]
[1633084625424,0.00808364,146.48,146.43,7.63859]
[1633084625820,0.00808364,146.48,146.44,34.62214657]
[1633084626022,0.02724512,146.55,146.45,7.44979]
[1633084626229,0.02724512,146.55,146.45,15.29521961]
[1633084626426,1.39332661,146.66,146.46,98.0]
[1633084626621,1.39332661,146.66,146.47,111.81731392]
[1633084626821,29.23565764,146.66,146.47,111.81731392]
[1633084627043,34.87108725,146.66,146.47,111.81731392]
[1633084627820,34.87108725,146.66,146.47,34.71701392]
[1633084628021,34.37108725,146.66,146.47,34.71701392]
[1633084628423,102.59782784,146.66,146.47,34.71701392]
[1633084628622,2.50992544,146.62,146.47,34.71701392]
[1633084628826,2.21,146.64,146.47,34.71701392]
[1633084629024,5.63542961,146.61,146.47,34.71701392]
[1633084629227,8.06198736,146.61,146.47,34.71701392]
[1633084629623,28.1448777,146.63,146.47,34.71701392]
[1633084629624,5.63542961,146.6,146.47,34.71701392]
[1633084629823,3.56607642,146.62,146.47,34.71701392]
[1633084630023,0.02088,146.63,146.47,34.71701392]
[1633084630224,5.63542961,146.64,146.47,34.71701392]
[1633084631023,6.03277153,146.65,146.47,34.71701392]
[1633084631225,22.4001702,146.66,146.47,34.71701392]
[1633084631427,5.63542961,146.65,146.55,30.0]
[1633084631726,5.63542961,146.65,146.56,28.41877493]
[1633084631927,5.63542961,146.65,146.55,30.0]
[1633084632528,5.63542961,146.65,146.61,30.0]
[1633084634329,5.65630961,146.67,146.61,30.0]
[1633084634728,3.86363821,146.69,146.51,2.21]
[1633084634929,0.3,146.69,146.52,24.85263968]
[1633084635129,0.3,146.69,146.53,2.21]
[1633084635329,5.93542961,146.69,146.53,2.21]
[1633084635530,0.3,146.69,146.53,2.21]
[1633084636152,0.3,146.69,146.63,30.0]
[1633084636753,2.49005544,146.66,146.63,30.0]
[1633084636953,0.3,146.69,146.63,30.0]
[1633084637955,0.3,146.69,146.64,6.7765]
[1633084638154,5.93542961,146.69,146.65,24.98797185]
[1633084638355,0.3,146.69,146.65,24.98797185]
[1633084638755,0.3,146.69,146.64,6.7765]
[1633084639159,5.63542961,146.68,146.64,6.7765]
[1633084639355,0.3,146.69,146.64,6.7765]
[1633084639555,2.57306438,146.65,146.63,30.45419204]
[1633084639758,2.57306438,146.65,146.63,30.0]
[1633084639957,14.63542961,146.64,146.5,2.21]
[1633084640156,2.46143599,146.6,146.5,2.21]
[1633084640556,5.63542961,146.63,146.5,2.21]
[1633084640755,9.0,146.64,146.51,25.8934247]
[1633084640957,5.63542961,146.65,146.51,25.8934247]
[1633084641156,5.63542961,146.68,146.52,7.19836]
[1633084641356,0.3,146.69,146.52,7.19836]
[1633084641556,0.3,146.69,146.56,0.02088]
[1633084641759,0.3,146.69,146.57,28.63425817]
[1633084641956,0.3,146.69,146.58,0.02088]
[1633084642556,0.3,146.69,146.58,5.01239]
[1633084642758,0.3,146.69,146.64,0.44]
[1633084643157,5.63542961,146.68,146.64,0.44]
[1633084643357,0.3,146.69,146.64,0.44]
[1633084643959,0.02088,146.82,146.64,2.65]
[1633084644160,1.90000001,146.87,146.64,2.65]
[1633084644161,1.42088001,146.87,146.67,98.0]
[1633084644365,70.84220224,146.86,146.69,26.21866873]
[1633084644562,1.42088001,146.87,146.7,2.21]
[1633084644563,63.692554,146.85,146.7,2.21]
[1633084644760,1.42088001,146.87,146.7,2.21]
[1633084644761,1.42088001,146.87,146.71,7.69826]
[1633084644960,1.42088001,146.87,146.72,23.68544903]
[1633084645160,1.42088001,146.87,146.73,0.0212976]
[1633084645359,1.42088001,146.87,146.73,1.2312976]
[1633084645961,1.42088001,146.87,146.74,7.67327]
[1633084646163,1.42088001,146.87,146.75,0.02088]
[1633084646365,2.67471617,146.88,146.75,0.02088]
[1633084646564,2.43887996,146.83,146.71,0.02088]
[1633084646762,2.43887996,146.83,146.67,2.23088]
[1633084646965,5.63542961,146.82,146.67,2.23088]
[1633084647163,27.97955325,146.83,146.68,25.02773883]
[1633084647361,5.63542961,146.86,146.68,25.02773883]
[1633084647362,5.65630961,146.86,146.69,2.21]
[1633084647562,33.71498286,146.88,146.7,0.02088]
[1633084647761,5.73542961,146.88,146.69,2.21]
[1633084647962,5.63542961,146.86,146.69,2.21]
[1633084648763,28.07955325,146.88,146.69,2.21]
[1633084648764,0.1,146.88,146.69,2.21]
[1633084649362,0.1,146.88,146.71,21.69113436]
[1633084649567,0.1,146.88,146.72,2.23088]
[1633084650163,999.6,146.88,146.74,26.29261185]
[1633084650363,999.6,146.88,146.75,2.21]
[1633084650763,999.6,146.88,146.76,0.02088]
[1633084650964,999.6,146.88,146.75,2.21]
[1633084652169,999.6,146.88,146.76,0.02088]
[1633084652563,999.6,146.88,146.75,2.21]
[1633084653964,999.62088,146.88,146.8,505.05877705]
[1633084654366,1007.80546965,146.88,146.8,505.05877705]
[1633084654564,1007.80546965,146.88,146.87,0.44]
[1633084654770,942.17004004,146.88,146.87,0.44]
[1633084655367,939.62088,146.88,146.87,0.44]
[1633084655566,999.17965709,146.88,146.8,458.15109096]
[1633084655766,2.43018941,146.81,146.8,281.05619676]
[1633084656166,2.43018941,146.81,146.71,383.01131584]
[1633084656366,8.06561902,146.81,146.71,383.01131584]
[1633084656568,8.06561902,146.81,146.71,405.27067742]
[1633084656769,0.02088,146.83,146.71,405.27067742]
[1633084657167,2.45163176,146.83,146.71,383.01131584]
[1633084657370,8.10794137,146.83,146.71,383.01131584]
[1633084657568,2.43745476,146.77,146.71,383.01131584]
[1633084657767,2.42920619,146.75,146.71,383.01131584]
[1633084657970,10.43465252,146.72,146.71,383.01131584]
[1633084658170,10.43465252,146.72,146.62,0.02088]
[1633084658368,10.43465252,146.72,146.54,78.6829]
[1633084658369,2.42385877,146.67,146.54,78.6829]
[1633084658568,2.42385877,146.67,146.55,0.02088]
[1633084658966,2.42385877,146.67,146.54,0.02088]
[1633084659166,2.42385877,146.67,146.52,3.90083868]
[1633084659367,2.42385877,146.67,146.54,22.1849866]
[1633084659568,2.45553252,146.72,146.54,22.1849866]
[1633084659768,2.45553252,146.72,146.54,23.85197499]
[1633084660072,20.52412526,146.75,146.55,3.85941797]
[1633084660470,20.52412526,146.75,146.56,1.63663434]
[1633084660673,20.52412526,146.75,146.57,24.28239108]
[1633084660868,2.57808365,146.79,146.58,1.64686541]
[1633084661073,19.74385816,146.81,146.59,2.23088]
[1633084661269,0.02088,146.82,146.6,23.07108201]
[1633084661468,5.70948995,146.85,146.62,1.57648312]
[1633084661669,79.21598,146.87,146.64,1.56757605]
[1633084661868,79.21598,146.87,146.65,2.23088]
[1633084662070,79.21598,146.87,146.66,28.32611068]
[1633084662269,79.21598,146.87,146.67,2.21]
[1633084662270,5.65630961,146.87,146.67,2.21]
[1633084662869,2.40679067,146.85,146.67,2.21]
[1633084663268,5.63542961,146.84,146.67,2.21]
[1633084663474,18.10362705,146.87,146.67,2.21]
[1633084663670,0.02088,146.87,146.72,23.46]
[1633084663869,939.6,146.88,146.72,51.99501091]
[1633084664272,939.6,146.88,146.72,23.46]
[1633084664471,2.50061023,146.85,146.73,0.02088]
[1633084664673,968.80733103,146.88,146.72,23.46]
[1633084664871,939.6,146.88,146.72,29.09542961]
[1633084665073,939.6,146.88,146.73,2.21]
[1633084665275,939.6,146.88,146.73,27.58727805]
[1633084666071,939.6,146.88,146.74,0.02088]
[1633084666276,939.6,146.88,146.75,2.21]
[1633084666472,939.6,146.88,146.76,0.02088]
[1633084666672,939.6,146.88,146.77,2.21]
[1633084666871,939.6,146.88,146.76,0.02088]
[1633084667075,2.49719869,146.82,146.73,0.02088]
[1633084667274,2.49719869,146.82,146.72,0.02088]
[1633084667472,2.4567046,146.81,146.72,0.02088]
[1633084667675,2.4444636,146.76,146.72,0.02088]
[1633084667876,2.4444636,146.76,146.66,74.41040092]
[1633084668071,3.56093486,146.8,146.66,24.38952092]
[1633084668271,2.49719869,146.82,146.66,24.38952092]
[1633084668473,0.02088,146.85,146.67,2.21]
[1633084668673,2.44301406,146.87,146.67,2.21]
[1633084668874,2.57891113,146.82,146.67,2.21]
[1633084669076,2.57658066,146.79,146.67,2.21]
[1633084669277,2.4787443,146.78,146.63,3.77508346]
[1633084669675,2.55571191,146.74,146.63,2.23088]
[1633084669875,2.49679,146.7,146.63,0.02088]
[1633084670075,2.49679,146.7,146.6,1.56782396]
[1633084670275,2.49679,146.7,146.61,22.77307179]
[1633084670874,0.02088,146.74,146.61,22.77307179]
[1633084671074,0.02088,146.77,146.62,1.55037539]
[1633084671275,0.02088,146.78,146.62,1.55037539]
[1633084671675,0.02088,146.79,146.63,1.55194914]
[1633084671876,0.02088,146.81,146.7,0.275661]
[1633084672876,0.02088,146.82,146.7,0.275661]
[1633084673079,941.81,146.88,146.7,0.275661]
[1633084673080,0.02088,146.86,146.7,0.275661]
[1633084673278,118.64434079,146.87,146.7,27.9847902]
[1633084673490,5.63542961,146.86,146.7,28.0056702]
[1633084673677,5.63542961,146.86,146.71,2.21]
[1633084673978,2.48714066,146.83,146.7,28.0056702]
[1633084674176,2.57779568,146.79,146.7,0.275661]
[1633084674576,32.10730169,146.83,146.7,0.275661]
[1633084674777,2.50802066,146.83,146.7,0.275661]
[1633084675178,2.43025721,146.76,146.7,0.275661]
[1633084675582,8.06568682,146.76,146.7,0.275661]
[1633084675779,2.43025721,146.76,146.7,0.275661]
[1633084676180,0.02088,146.8,146.7,0.275661]
[1633084676380,5.65630961,146.82,146.7,0.275661]
[1633084676580,5.63542961,146.82,146.78,23.46]
[1633084676781,5.63542961,146.8,146.78,23.46]
[1633084676983,939.6,146.88,146.78,23.46]
[1633084677181,945.23542961,146.88,146.78,23.46]
[1633084677381,939.6,146.88,146.78,23.46]
[1633084678382,991.062,146.88,146.78,23.46]
[1633084678581,2.51995859,146.86,146.78,23.46]
[1633084679182,2.51995859,146.86,146.78,0.0001]
[1633084679183,2.46602932,146.81,146.78,0.0001]
[1633084679982,2.46602932,146.81,146.75,23.46]
[1633084680587,2.4347501,146.77,146.75,23.46]
[1633084680986,2.4347501,146.77,146.7,23.54607845]
[1633084681184,3.58144211,146.8,146.7,0.275661]
[1633084681383,0.02088,146.8,146.7,0.275661]
[1633084681784,9.19571114,146.79,146.7,0.275661]
[1633084681982,0.02088,146.8,146.7,0.275661]
[1633084682181,0.02088,146.84,146.7,0.275661]
[1633084682585,18.02273009,146.86,146.7,0.275661]
[1633084682782,939.6,146.88,146.7,0.275661]
[1633084682984,2.45577396,146.85,146.7,0.275661]
[1633084683385,939.6,146.88,146.7,0.275661]
[1633084683985,939.6,146.88,146.71,2.21]
[1633084684185,939.6,146.88,146.72,28.96194168]
[1633084684586,939.6,146.88,146.72,28.94106168]
[1633084684786,939.6,146.88,146.73,0.02088]
[1633084685386,945.23542961,146.88,146.73,0.02088]
[1633084685589,939.6,146.88,146.78,23.46]
[1633084685792,991.062,146.88,146.78,23.46]
[1633084685991,945.23542961,146.88,146.78,23.46]
[1633084686190,10.21,146.87,146.78,1.98653624]
[1633084686388,2.21,146.87,146.79,0.02088]
[1633084686588,0.02088,146.86,146.78,1.98653624]
[1633084686790,5.63542961,146.87,146.78,1.98653624]
[1633084686988,5.63542961,146.86,146.78,1.98653624]
[1633084687191,939.6,146.88,146.78,1.98653624]
[1633084687791,939.6,146.88,146.78,4.19653624]
[1633084687989,939.6,146.88,146.78,4.21741624]
[1633084688194,939.6,146.88,146.78,2.00741624]
[1633084688390,2.54595766,146.83,146.78,2.00741624]
[1633084688596,2.54595766,146.83,146.78,1.98653624]
[1633084688790,5.63542961,146.87,146.78,1.48653624]
[1633084688990,964.50700325,146.88,146.78,1.48653624]
[1633084688991,939.62088,146.88,146.78,1.48653624]
[1633084689991,5.63542961,146.87,146.78,1.48653624]
[1633084690391,0.02088,146.86,146.65,3.61804305]
[1633084690594,2.23088,146.86,146.64,0.02088]
[1633084690791,5.65630961,146.85,146.64,0.02088]
[1633084691194,0.02088,146.85,146.66,2.21]
[1633084691390,0.02088,146.86,146.67,27.18469495]
[1633084691791,0.02088,146.87,146.67,27.18469495]
[1633084691993,0.02088,146.87,146.68,2.21]
[1633084692395,939.6,146.88,146.68,2.23088]
[1633084692592,939.6,146.88,146.71,26.97654778]
[1633084692792,939.6,146.88,146.72,2.23088]
[1633084693292,939.6,146.88,146.72,2.21]
[1633084693493,991.062,146.88,146.72,2.21]
[1633084693696,939.6,146.88,146.72,2.21]
[1633084693894,0.02088,146.87,146.72,2.21]
[1633084694293,0.02088,146.87,146.8,1.48]
[1633084694498,939.6,146.88,146.8,1.48]
[1633084695096,991.062,146.88,146.8,1.48]
[1633084695497,5.65630961,146.87,146.8,1.48]
[1633084696500,0.02088,146.87,146.8,1.48]
[1633084697500,8.0,146.86,146.7,0.275661]
[1633084697698,51.462,146.85,146.7,0.275661]
[1633084697898,13.63542961,146.86,146.7,0.275661]
[1633084698100,3.5604497,146.85,146.7,0.275661]
[1633084698499,0.02088,146.87,146.7,0.275661]
[1633084698902,939.6,146.88,146.73,437.79488857]
[1633084699100,939.6,146.88,146.74,22.32519978]
[1633084699500,991.062,146.88,146.74,22.32519978]
[1633084699900,996.69742961,146.88,146.73,437.79488857]
[1633084700099,996.69742961,146.88,146.72,0.02088]
[1633084700299,991.062,146.88,146.71,0.02088]
[1633084700901,939.6,146.88,146.71,26.83194221]
[1633084701100,939.6,146.88,146.72,0.02088]
[1633084701705,939.6,146.88,146.72,30.27366055]
[1633084702106,51.462,146.87,146.72,30.27366055]
[1633084702303,51.462,146.87,146.72,0.02088]